fUSD/lending_fUSD_20250108
["ID","MTS","AMOUNT","RATE_DAILY","PERIOD"]
[348125245,1736341834430,-258.56,9.997e-05,2]
[348125247,1736341834439,-500.0,9.997e-05,2]
[348125249,1736341834448,-500.0,9.997e-05,2]
[348125250,1736341834458,-500.0,9.997e-05,2]
[348125253,1736341834468,-622.91,9.997e-05,2]
[348125254,1736341834478,-500.0,9.997e-05,2]
[348125256,1736341834487,-500.0,9.997e-05,2]
[348125258,1736341834498,-500.0,9.997e-05,2]
[348125260,1736341834509,-741.88,9.997e-05,2]
[348125262,1736341834519,-500.0,9.997e-05,2]
[348125264,1736341834529,-500.0,9.997e-05,2]
[348125266,1736341834539,-500.0,9.997e-05,2]
[348125268,1736341834549,-500.0,9.997e-05,2]
[348125270,1736341834560,-500.0,9.997e-05,2]
[348125272,1736341834569,-624.02,9.997e-05,2]
[348125274,1736341834580,-1187.33,9.997e-05,2]
[348125276,1736341834590,-500.0,9.997e-05,2]
[348125278,1736341834600,-500.0,9.997e-05,2]
[348125280,1736341834609,-500.0,9.997e-05,2]
[348125282,1736341834619,-361.28596474,9.997e-05,2]
[348125284,1736341834628,-500.0,9.997e-05,2]
[348125286,1736341834637,-500.0,9.997e-05,2]
[348125288,1736341834647,-500.0,9.997e-05,2]
[348125290,1736341834657,-1158.96,9.997e-05,2]
[348125292,1736341834666,-500.0,9.997e-05,2]
[348125294,1736341834676,-500.0,9.997e-05,2]
[348125296,1736341834686,-500.0,9.997e-05,2]
[348125298,1736341834696,-500.0,9.997e-05,2]
[348125300,1736341834707,-592.47,9.997e-05,2]
[348125302,1736341834717,-633.02,9.997e-05,2]
[348125304,1736341834727,-753.43,9.997e-05,2]
[348125306,1736341834737,-500.0,9.997e-05,2]
[348125307,1736341834747,-500.0,9.997e-05,2]
[348125309,1736341834757,-500.0,9.997e-05,2]
[348125311,1736341834766,-500.0,9.997e-05,2]
[348125313,1736341834776,-506.91964728,9.997e-05,2]
[348125315,1736341834786,-505.26483855,9.997e-05,2]
[348125317,1736341834795,-500.0,9.997e-05,2]
[348125319,1736341834804,-500.0,9.997e-05,2]
[348125321,1736341834814,-500.0,9.997e-05,2]
[348125323,1736341834823,-2106.74,9.997e-05,2]
[348125325,1736341834833,-500.0,9.997e-05,2]
[348125327,1736341834842,-500.0,9.997e-05,2]
[348125329,1736341834851,-500.0,9.997e-05,2]
[348125331,1736341834861,-992.63,9.997e-05,2]
[348125333,1736341834870,-211.54235735,9.997e-05,2]
[348125336,1736341834892,-288.45764265,9.997e-05,2]
[348125338,1736341834901,-500.0,9.997e-05,2]
[348125340,1736341834911,-500.0,9.997e-05,2]
[348125342,1736341834920,-500.0,9.997e-05,2]
[348125344,1736341834929,-1238.03147388,9.997e-05,2]
[348125346,1736341834941,-714.63265258,9.997e-05,2]
[348125349,1736341834952,-1484.81587354,9.997e-05,2]
[348125351,1736341834962,-500.0,9.997e-05,2]
[348125353,1736341834971,-500.0,9.997e-05,2]
[348125355,1736341834981,-500.0,9.997e-05,2]
[348125356,1736341834993,-500.0,9.997e-05,2]
[348125358,1736341835003,-500.0,9.997e-05,2]
[348125361,1736341835013,-2955.92,9.997e-05,2]
[348125362,1736341835023,-457.68649112,9.997e-05,2]
[348125365,1736341835035,-42.31350888,9.997e-05,2]
[348125367,1736341835045,-500.0,9.997e-05,2]
[348125369,1736341835054,-500.0,9.997e-05,2]
[348125371,1736341835065,-500.0,9.997e-05,2]
[348125373,1736341835074,-500.0,9.997e-05,2]
[348125374,1736341835084,-500.0,9.997e-05,2]
[348125377,1736341835095,-500.0,9.997e-05,2]
[348125378,1736341835104,-685.07,9.997e-05,2]
[348125380,1736341835113,-500.0,9.997e-05,2]
[348125382,1736341835122,-643.92,9.997e-05,2]
[348125384,1736341835131,-500.0,9.997e-05,2]
[348125386,1736341835140,-610.15,9.997e-05,2]
[348125388,1736341835150,-1336.98,9.997e-05,2]
[348125390,1736341835159,-500.0,9.997e-05,2]
[348125392,1736341835169,-500.0,9.997e-05,2]
[348125394,1736341835178,-500.0,9.997e-05,2]
[348125396,1736341835188,-500.0,9.997e-05,2]
[348125398,1736341835197,-3104.72,9.997e-05,2]
[348125400,1736341835208,-500.80795696,9.998e-05,2]
[348125402,1736341835218,-501.26174749,9.998e-05,2]
[348125404,1736341835227,-275.13880488,9.998e-05,2]
[348125406,1736341835237,-500.0,9.998e-05,2]
[348125408,1736341835247,-500.0,9.998e-05,2]
[348125410,1736341835256,-500.0,9.998e-05,2]
[348125412,1736341835265,-500.0,9.998e-05,2]
[348125414,1736341835275,-500.0,9.998e-05,7]
[348125416,1736341835284,-343.94175515,9.998e-05,2]
[348125418,1736341835293,-500.0,9.998e-05,2]
[348125420,1736341835302,-500.0,9.998e-05,2]
[348125422,1736341835312,-500.0,9.998e-05,2]
[348125424,1736341835321,-500.0,9.998e-05,2]
[348125426,1736341835331,-500.0,9.998e-05,2]
[348125428,1736341835340,-500.0,9.998e-05,2]
[348125430,1736341835349,-500.0,9.998e-05,2]
[348125432,1736341835358,-538.49520279,9.998e-05,2]
[348125434,1736341835366,-500.0,9.998e-05,2]
[348125436,1736341835376,-573.9668206,9.998e-05,2]
[348125438,1736341835385,-500.0,9.998e-05,2]
[348125440,1736341835394,-500.0,9.998e-05,2]
[348125442,1736341835404,-500.0,9.998e-05,2]
[348125444,1736341835414,-500.0,9.998e-05,2]
[348125446,1736341835423,-500.0,9.998e-05,2]
[348125448,1736341835433,-500.0,9.998e-05,2]
[348125450,1736341835442,-577.22,9.998e-05,2]
[348125452,1736341835452,-510.17,9.998e-05,2]
[348125453,1736341835460,-500.0,9.998e-05,2]
[348125455,1736341835470,-631.92535049,9.998e-05,2]
[348125458,1736341835479,-500.0,9.998e-05,2]
[348125460,1736341835489,-500.0,9.998e-05,2]
[348125461,1736341835499,-500.0,9.998e-05,2]
[348125463,1736341835509,-503.88968478,9.998e-05,2]
[348125466,1736341835518,-537.6,9.998e-05,2]
[348125468,1736341835528,-531.12042523,9.998e-05,2]
[348125470,1736341835538,-500.0,9.998e-05,2]
[348125472,1736341835548,-500.0,9.998e-05,2]
[348125473,1736341835557,-500.0,9.998e-05,2]
[348125475,1736341835566,-500.0,9.998e-05,2]
[348125477,1736341835576,-500.0,9.998e-05,2]
[348125479,1736341835585,-500.0,9.998e-05,2]
[348125481,1736341835595,-500.0,9.998e-05,2]
[348125483,1736341835604,-500.0,9.998e-05,2]
[348125485,1736341835614,-500.0,9.998e-05,2]
[348125487,1736341835623,-333.74,9.998e-05,2]
[348125489,1736341835634,-500.0,9.998e-05,2]
[348125491,1736341835643,-258.34,9.998e-05,2]
[348125493,1736341835653,-500.0,9.998e-05,2]
[348125495,1736341835663,-500.0,9.998e-05,2]
[348125497,1736341835673,-500.0,9.998e-05,2]
[348125499,1736341835682,-500.0,9.998e-05,2]
[348125501,1736341835692,-500.0,9.998e-05,2]
[348125503,1736341835703,-500.0,9.998e-05,2]
[348125505,1736341835713,-500.0,9.998e-05,2]
[348125507,1736341835723,-500.0,9.998e-05,2]
[348125509,1736341835732,-500.0,9.998e-05,2]
[348125511,1736341835741,-500.0,9.998e-05,2]
[348125513,1736341835752,-500.0,9.998e-05,2]
[348125515,1736341835761,-500.0,9.998e-05,2]
[348125517,1736341835771,-500.0,9.998e-05,2]
[348125519,1736341835780,-500.0,9.998e-05,2]
[348125521,1736341835789,-500.0,9.998e-05,2]
[348125523,1736341835799,-500.0,9.998e-05,2]
[348125525,1736341835808,-244.86939466,9.998e-05,2]
[348125527,1736341835817,-500.0,9.998e-05,2]
[348125529,1736341835827,-500.0,9.998e-05,2]
[348125531,1736341835836,-340.16,9.998e-05,2]
[348125533,1736341835846,-500.0,9.998e-05,2]
[348125535,1736341835855,-500.0,9.998e-05,2]
[348125537,1736341835865,-500.0,9.998e-05,2]
[348125539,1736341835875,-500.0,9.998e-05,2]
[348125541,1736341835884,-500.0,9.998e-05,2]
[348125543,1736341835893,-156.26,9.998e-05,2]
[348125545,1736341835902,-500.0,9.998e-05,2]
[348125547,1736341835911,-500.0,9.998e-05,2]
[348125549,1736341835920,-500.0,9.998e-05,2]
[348125551,1736341835930,-500.0,9.998e-05,2]
[348125553,1736341835939,-500.0,9.998e-05,2]
[348125555,1736341835948,-515.48,9.998e-05,2]
[348125557,1736341835957,-500.0,9.998e-05,2]
[348125559,1736341835967,-500.0,9.998e-05,2]
[348125561,1736341835976,-500.0,9.998e-05,2]
[348125563,1736341835985,-500.0,9.998e-05,2]
[348125565,1736341835996,-500.0,9.998e-05,2]
[348125567,1736341836005,-508.82,9.998e-05,2]
[348125569,1736341836014,-500.0,9.998e-05,2]
[348125571,1736341836023,-500.0,9.998e-05,2]
[348125573,1736341836033,-500.0,9.998e-05,2]
[348125575,1736341836042,-500.0,9.998e-05,2]
[348125577,1736341836051,-436.87826717,9.998e-05,2]
[348125579,1736341836061,-500.0,9.998e-05,2]
[348125581,1736341836070,-500.0,9.998e-05,2]
[348125583,1736341836079,-534.08,9.998e-05,2]
[348125585,1736341836088,-500.0,9.998e-05,2]
[348125587,1736341836097,-500.0,9.998e-05,2]
[348125589,1736341836107,-500.0,9.998e-05,2]
[348125591,1736341836116,-500.0,9.998e-05,2]
[348125593,1736341836125,-500.0,9.998e-05,2]
[348125595,1736341836135,-500.0,9.998e-05,2]
[348125597,1736341836145,-500.0,9.998e-05,2]
[348125598,1736341836155,-500.0,9.998e-05,2]
[348125599,1736341836164,-500.0,9.998e-05,2]
[348125600,1736341836174,-504.04004126,9.998e-05,2]
[348125601,1736341836184,-500.0,9.998e-05,2]
[348125602,1736341836193,-500.0,9.998e-05,2]
[348125603,1736341836202,-500.0,9.998e-05,2]
[348125604,1736341836212,-500.0,9.998e-05,2]
[348125605,1736341836222,-664.89,9.998e-05,2]
[348125606,1736341836231,-500.0,9.998e-05,2]
[348125607,1736341836240,-500.0,9.998e-05,2]
[348125609,1736341836250,-500.0,9.998e-05,2]
[348125611,1736341836260,-500.0,9.998e-05,2]
[348125613,1736341836270,-502.80202421,9.998e-05,2]
[348125615,1736341836279,-500.0,9.998e-05,2]
[348125617,1736341836288,-500.0,9.998e-05,2]
[348125619,1736341836298,-500.0,9.998e-05,2]
[348125621,1736341836307,-500.0,9.998e-05,2]
[348125623,1736341836316,-500.0,9.998e-05,2]
[348125626,1736341836326,-223.88,9.998e-05,2]
[348125627,1736341836336,-500.0,9.998e-05,2]
[348125630,1736341836345,-500.0,9.998e-05,2]
[348125632,1736341836356,-500.0,9.998e-05,2]
[348125633,1736341836365,-500.0,9.998e-05,2]
[348125636,1736341836375,-615.22883885,9.998e-05,2]
[348125638,1736341836384,-500.0,9.998e-05,2]
[348125639,1736341836393,-500.0,9.998e-05,2]
[348125641,1736341836403,-500.0,9.998e-05,2]
[348125643,1736341836412,-500.0,9.998e-05,2]
[348125645,1736341836422,-500.0,9.998e-05,2]
[348125647,1736341836431,-500.0,9.998e-05,2]
[348125650,1736341836441,-500.0,9.998e-05,2]
[348125651,1736341836450,-501.70264171,9.998e-05,2]
[348125653,1736341836459,-500.0,9.998e-05,2]
[348125655,1736341836469,-500.0,9.998e-05,2]
[348125658,1736341836478,-500.0,9.998e-05,2]
[348125660,1736341836488,-500.0,9.998e-05,2]
[348125662,1736341836499,-500.0,9.998e-05,2]
[348125664,1736341836508,-500.0,9.998e-05,2]
[348125666,1736341836518,-500.0,9.998e-05,2]
[348125667,1736341836527,-533.71,9.998e-05,2]
[348125669,1736341836537,-500.0,9.998e-05,2]
[348125672,1736341836547,-500.0,9.998e-05,2]
[348125673,1736341836558,-431.3306505,9.998e-05,2]
[348125675,1736341836567,-500.0,9.998e-05,2]
[348125677,1736341836577,-500.0,9.998e-05,2]
[348125679,1736341836586,-500.0,9.998e-05,2]
[348125681,1736341836596,-500.0,9.998e-05,2]
[348125683,1736341836605,-376.47379795,9.998e-05,2]
[348125685,1736341836614,-500.0,9.998e-05,2]
[348125687,1736341836623,-500.0,9.998e-05,2]
[348125689,1736341836632,-500.0,9.998e-05,2]
[348125691,1736341836642,-500.0,9.998e-05,2]
[348125693,1736341836651,-500.0,9.998e-05,2]
[348125695,1736341836661,-500.0,9.998e-05,2]
[348125697,1736341836670,-500.0,9.998e-05,2]
[348125700,1736341836679,-500.0,9.998e-05,2]
[348125701,1736341836688,-500.0,9.998e-05,2]
[348125703,1736341836699,-500.0,9.998e-05,2]
[348125705,1736341836709,-500.0,9.998e-05,2]
[348125707,1736341836719,-500.0,9.998e-05,2]
[348125709,1736341836729,-500.0,9.998e-05,2]
[348125712,1736341836739,-500.0,9.998e-05,2]
[348125714,1736341836750,-500.0,9.998e-05,2]
[348125716,1736341836759,-500.0,9.998e-05,2]
[348125717,1736341836769,-500.0,9.998e-05,2]
[348125720,1736341836779,-500.0,9.998e-05,2]
[348125722,1736341836788,-500.0,9.998e-05,2]
[348125724,1736341836797,-500.0,9.998e-05,2]
[348125725,1736341836806,-3015.65,9.998e-05,2]
[348125728,1736341836816,-352.56061788,9.998e-05,2]
[348125730,1736341836825,-500.0,9.998e-05,2]
[348125732,1736341836834,-500.0,9.998e-05,2]
[348125733,1736341836844,-500.0,9.998e-05,2]
[348125736,1736341836854,-500.0,9.998e-05,2]
[348125738,1736341836863,-500.0,9.998e-05,2]
[348125740,1736341836873,-500.0,9.998e-05,2]
[348125742,1736341836882,-500.0,9.998e-05,2]
[348125744,1736341836892,-552.4,9.998e-05,2]
[348125746,1736341836902,-500.0,9.998e-05,2]
[348125747,1736341836911,-500.0,9.998e-05,2]
[348125750,1736341836920,-864.89,9.998e-05,2]
[348125752,1736341836930,-365.02,9.998e-05,2]
[348125753,1736341836940,-4728.601087,9.999e-05,4]
[348125755,1736341836949,-1019.59,9.999e-05,2]
[348125757,1736341836958,-542.52,9.999e-05,2]
[348125759,1736341836968,-866.71,9.999e-05,2]
[348125761,1736341836977,-11194.54,9.999e-05,2]
[348125763,1736341836989,-11194.54,9.999e-05,2]
[348125765,1736341836999,-11194.54,9.999e-05,2]
[348125767,1736341837008,-11194.54,9.999e-05,2]
[348125769,1736341837017,-11194.54,9.999e-05,2]
[348125771,1736341837028,-11194.54,9.999e-05,2]
[348125773,1736341837038,-11194.54,9.999e-05,2]
[348125775,1736341837047,-883.71,9.999e-05,2]
[348125777,1736341837056,-1991.31,9.999e-05,2]
[348125780,1736341837067,-1093.57,9.999e-05,2]
[348125782,1736341837077,-2544.61,9.999e-05,2]
[348125784,1736341837086,-916.74,9.999e-05,2]
[348125786,1736341837096,-1533.52,9.999e-05,2]
[348125788,1736341837105,-500.0,9.999e-05,2]
[348125790,1736341837114,-500.0,9.999e-05,2]
[348125792,1736341837123,-876.5,9.999e-05,2]
[348125794,1736341837133,-1076.75,9.999e-05,2]
[348125796,1736341837143,-500.0,9.999e-05,2]
[348125798,1736341837153,-555.84,9.999e-05,2]
[348125800,1736341837162,-958.16,9.999e-05,2]
[348125803,1736341837180,-500.0,9.999e-05,2]
[348125805,1736341837191,-500.0,9.999e-05,2]
[348125807,1736341837200,-2437.88,9.999e-05,2]
[348125809,1736341837210,-597.05,9.999e-05,2]
[348125811,1736341837220,-4649.15,9.999e-05,2]
[348125813,1736341837229,-596.72,9.999e-05,2]
[348125815,1736341837239,-1835.18,9.999e-05,2]
[348125817,1736341837249,-500.0,9.999e-05,2]
[348125819,1736341837258,-2077.95,9.999e-05,2]
[348125821,1736341837267,-500.0,9.999e-05,2]
[348125823,1736341837277,-500.0,9.999e-05,2]
[348125825,1736341837286,-1036.85,9.999e-05,2]
[348125827,1736341837295,-500.0,9.999e-05,2]
[348125829,1736341837305,-500.0,9.999e-05,2]
[348125831,1736341837315,-676.49,9.999e-05,2]
[348125833,1736341837324,-500.0,9.999e-05,2]
[348125835,1736341837334,-500.0,9.999e-05,2]
[348125837,1736341837343,-125216.62278226,0.0001,2]
[348125881,1736341837886,-342.527592,0.0001,2]
[348125882,1736341837898,-720.52065708,0.0001,2]
[348125883,1736341837910,-4767.4,0.0001,2]
[348125884,1736341837921,-6400.0,0.0001,2]
[348125885,1736341837933,-6786.02500432,0.0001,2]
[348125886,1736341837951,-82982.30086997,0.0001,2]
[348125887,1736341837962,-579.69973261,0.0001,2]
[348125888,1736341837974,-7780.23843371,0.0001,2]
[348125889,1736341837986,-26538.13863657,0.0001,2]
[348125890,1736341837997,-404.92261432,0.0001,2]
[348125891,1736341838016,-1950.0,0.0001,2]
[348125892,1736341838028,-1616.193997,0.0001,2]
[348125895,1736341838865,-500.0,9.999e-05,2]
[348125896,1736341838885,-4567.23361586,0.0001,2]
[348125897,1736341838897,-12555.74030853,0.0001,2]
[348125898,1736341838909,-173909.66835815,0.0001,2]
[348125899,1736341838935,-1170.0,0.0001,2]
[348125900,1736341838947,-75465.1016407,0.0001,2]
[348125901,1736341838958,-573.45,0.0001,2]
[348125902,1736341838970,-73443.00695968,0.0001,2]
[348125903,1736341838987,-20469.56654378,0.0001,2]
[348125904,1736341839005,-734.18865005,0.0001,2]
[348125905,1736341839017,-2608.14332056,0.0001,2]
[348125906,1736341839028,-10366.37801371,0.0001,2]
[348125909,1736341840121,-502.66,9.997e-05,2]
[348125911,1736341840131,-7102.800225,0.0001,2]
[348125912,1736341840235,-553.06899972,0.0001,2]
[348125913,1736341840294,-5606.14525523,0.0001,2]
[348125914,1736341840306,-77938.61247147,0.0001,2]
[348125915,1736341840322,-695.72,0.0001,2]
[348125916,1736341840334,-1489.1000005,0.0001,2]
[348125917,1736341840344,-648.38324154,0.0001,2]
[348125918,1736341840410,-1783.47019376,0.0001,2]
[348125919,1736341840423,-4019.09127962,0.0001,2]
[348125920,1736341840434,-315.6,0.0001,2]
[348125944,1736341843125,-444.24810918,9.799e-05,2]
[348125964,1736341846235,-55.75189082,9.799e-05,2]
[348125965,1736341846246,-622.18,9.799e-05,2]
[348125966,1736341846258,-560.94,9.799e-05,2]
[348125967,1736341846268,-169.251625,9.799e-05,2]
[348125968,1736341846277,-8130.85728418,0.0001,2]
[348125969,1736341846290,-1913.0685,0.0001,2]
[348125970,1736341846301,-41747.72253047,0.0001,2]
[348125971,1736341846314,-187434.33245009,0.0001,2]
[348125972,1736341846327,-86908.95954517,0.0001,2]
[348125973,1736341846454,-500.0,9.799e-05,2]
[348125975,1736341846463,-4219.57656358,0.0001,2]
[348125981,1736341952680,200.0,0.0002,120]
[348125982,1736341984316,-1002.84104178,0.0001843,30]
[348125983,1736341984343,-1000.0,0.0001843,30]
[348125984,1736341984371,-1280.69289475,0.0001843,60]
[348125985,1736341984399,-1000.0,0.0001843,60]
[348125986,1736341984425,-1000.0,0.0001843,30]
[348125987,1736341984452,-1000.0,0.0001843,60]
[348125988,1736341984478,-1000.0,0.0001843,60]
[348125989,1736341984503,-1000.0,0.0001843,30]
[348125990,1736341984529,-1000.0,0.0001843,60]
[348125991,1736341984556,-1000.0,0.0001843,60]
[348125992,1736341984583,-1000.0,0.0001843,60]
[348125993,1736341984616,-202.8,0.0001843,30]
[348125994,1736341984649,-202.8,0.0001843,30]
[348125995,1736341984675,-1514.60698907,0.0001843,120]
[348125996,1736341984702,-627.084625,0.0001843,120]
[348125997,1736341984730,-4034.0,0.0001843,120]
[348125998,1736341984756,-838.29037579,0.0001843,90]
[348125999,1736341984784,-3132.38140208,0.0001843,30]
[348126000,1736341984812,-1467.54903375,0.0001843,10]
[348126001,1736341984838,-999.999996,0.0001843,120]
[348126002,1736341984865,-503.0212917,0.0001843,30]
[348126003,1736341984891,-2382.14242476,0.0001843,30]
[348126004,1736341984917,-375.94575932,0.0001843,30]
[348126005,1736341984942,-862.39165996,0.0001843,30]
[348126006,1736341984968,-1000.0,0.0001843,30]
[348126007,1736341984996,-2339.72230102,0.0001843,30]
[348126008,1736341985022,-2731.29788756,0.0001843,30]
[348126009,1736341985046,-2762.25159638,0.0001843,120]
[348126010,1736341985071,-600.14080139,0.0001843,120]
[348126011,1736341985099,-154.08221462,0.0001843,120]
[348126012,1736341985126,-1765.09627909,0.0001843,120]
[348126013,1736341985157,-1979.52473444,0.0001843,30]
[348126014,1736341985184,-3273.67176376,0.0001843,30]
[348126015,1736341985211,-727.73258801,0.0001843,30]
[348126016,1736341985237,-693.58215106,0.0001843,10]
[348126017,1736341985262,-706.37826333,0.0001843,30]
[348126018,1736341985288,-2327.9197804,0.0001843,120]
[348126019,1736341985312,-1007.67737923,0.0001843,15]
[348126020,1736341985337,-941.15603414,0.0001843,20]
[348126021,1736341985363,-261.05549084,0.0001843,30]
[348126022,1736341985389,-2500.0,0.0001843,30]
[348126023,1736341985414,-844.72191942,0.0001843,30]
[348126024,1736341985439,-300.0,0.0001843,15]
[348126025,1736341985464,-3000.0,0.0001843,30]
[348126026,1736341985490,-852.8012497,0.0001843,30]
[348126027,1736341985515,-918.58728612,0.0001843,30]
[348126028,1736341985569,-210.49817164,0.0001843,120]
[348126029,1736341985639,-211.53058719,0.0001843,60]
[348126030,1736341985738,-205.59890454,0.0001843,30]
[348126031,1736341985768,-948.98285865,0.0001843,30]
[348126032,1736341985796,-150.34371992,0.0001843,120]
[348126033,1736341985832,-1218.36654943,0.0001843,15]
[348126034,1736341985862,-2203.41221277,0.0001843,10]
[348126035,1736341985890,-346.85023701,0.0001843,30]
[348126036,1736341985917,-2233.28073618,0.0001843,10]
[348126037,1736341985943,-1000.0,0.0001843,10]
[348126038,1736341985969,-2371.80273258,0.0001843,120]
[348126039,1736341985995,-157.43137132,0.0001843,120]
[348126040,1736341986024,-500.0,0.0001843,10]
[348126041,1736341986327,-330.98562067,0.0001843,120]
[348126042,1736341986352,-3116.97748746,0.0001843,120]
[348126043,1736341986379,-828.69866936,0.0001843,120]
[348126044,1736341986405,-3034.8812782,0.0001843,30]
[348126045,1736341986430,-961.83516391,0.0001843,120]
[348126046,1736341986456,-562.3960349,0.0001843,120]
[348126047,1736341986482,-832.85083572,0.0001843,120]
[348126048,1736341986508,-501.25812683,0.0001843,120]
[348126049,1736341986533,-217.74970411,0.0001843,120]
[348126050,1736341986558,-872.90098695,0.0001843,30]
[348126051,1736341986584,-269.78111621,0.0001843,10]
[348126052,1736341986610,-548.82335918,0.0001843,120]
[348126053,1736341986639,-201.03494724,0.0001843,30]
[348126054,1736341986670,-1155.32069667,0.0001843,120]
[348126055,1736341986696,-479.23525877,0.0001843,60]
[348126056,1736341986722,-461.10650881,0.0001843,30]
[348126057,1736341986748,-263.31633975,0.0001843,30]
[348126058,1736341986777,-2654.97443927,0.0001843,30]
[348126059,1736341986803,-359.04577175,0.0001843,45]
[348126060,1736341986830,-1744.28094515,0.0001843,30]
[348126061,1736341986855,-2294.36025536,0.0001843,30]
[348126062,1736341986881,-1444.16667177,0.0001843,30]
[348126063,1736341986906,-377.09649767,0.0001843,60]
[348126064,1736341986931,-345.28692247,0.0001843,30]
[348126065,1736341986956,-1848.4122362,0.0001843,120]
[348126066,1736341986981,-1100.14764125,0.0001843,30]
[348126067,1736341987006,-297.45774305,0.0001843,30]
[348126068,1736341987031,-756.0,0.0001843,120]
[348126069,1736341987060,-2167.18325359,0.0001843,30]
[348126070,1736341987086,-1094.31909004,0.0001843,120]
[348126071,1736341987111,-730.01445759,0.0001843,120]
[348126072,1736341987141,-275.0,0.0001843,30]
[348126073,1736341987167,-1999.999999,0.0001843,120]
[348126074,1736341987194,-2000.0,0.0001843,30]
[348126075,1736341987220,-2573.43656276,0.0001843,30]
[348126076,1736341987245,-421.53964706,0.0001843,30]
[348126077,1736341987270,-1600.8973902,0.0001843,120]
[348126078,1736341987296,-358.63537953,0.0001843,11]
[348126079,1736341987321,-3128.40642434,0.0001843,120]
[348126080,1736341987349,-155.36771643,0.0001843,120]
[348126081,1736341987376,-698.37777658,0.0001843,120]
[348126082,1736341987402,-1000.0,0.0001843,60]
[348126083,1736341987428,-304.21836177,0.0001843,30]
[348126084,1736341987457,-10419.87757088,0.0001843,120]
[348126085,1736341987483,-4315.96760211,0.0001843,120]
[348126086,1736341987511,-5000.0,0.0001843,120]
[348126087,1736341987538,-1114.0,0.0001843,120]
[348126088,1736341987565,-152.49545129,0.0001843,120]
[348126089,1736341987591,-3209.0,0.0001843,30]
[348126090,1736341987619,-897.0,0.0001843,120]
[348126091,1736341987645,-1000.0,0.0001843,120]
[348126092,1736341987671,-1000.0,0.0001843,120]
[348126093,1736341987698,-1000.0,0.0001843,120]
[348126094,1736341987724,-1727.61457319,0.0001843,30]
[348126095,1736341987751,-1400.20564665,0.0001843,30]
[348126096,1736341987780,-485.51613991,0.0001843,120]
[348126097,1736341987807,-14740.14369783,0.0001843,120]
[348126098,1736341987852,-100000.0,0.0001843,20]
[348126099,1736341987889,-100000.0,0.0001843,21]
[348126100,1736341987923,-100000.0,0.0001843,22]
[348126101,1736341987953,-100000.0,0.0001843,23]
[348126102,1736341987981,-100000.0,0.0001843,24]
[348126103,1736341988013,-100000.0,0.0001843,30]
[348126104,1736341988042,-100000.0,0.0001843,31]
[348126105,1736341988069,-100000.0,0.0001843,32]
[348126106,1736341988098,-35298.35670487,0.0001843,33]
[348126107,1736341993491,-64701.64329513,0.0001843,33]
[348126108,1736341993519,-100000.0,0.0001843,34]
[348126109,1736341993544,-828.72147615,0.0001843,10]
[348126110,1736341993569,-1218.0,0.0001843,120]
[348126111,1736341993596,-50019.98363242,0.0001843,16]
[348126112,1736341993624,-3413.6,0.0001843,120]
[348126113,1736341993649,-250.0,0.0001843,30]
[348126114,1736341993675,-250.0,0.0001843,30]
[348126115,1736341993701,-250.0,0.0001843,30]
[348126116,1736341993728,-250.0,0.0001843,30]
[348126117,1736341993755,-250.0,0.0001843,30]
[348126118,1736341993781,-250.0,0.0001843,30]
[348126119,1736341993808,-250.0,0.0001843,30]
[348126120,1736341993834,-250.0,0.0001843,30]
[348126121,1736341993859,-250.0,0.0001843,30]
[348126122,1736341993887,-250.0,0.0001843,30]
[348126123,1736341993910,-250.0,0.0001843,30]
[348126124,1736341993934,-250.0,0.0001843,30]
[348126125,1736341993960,-242.782823,0.0001843,30]
[348126126,1736341993985,-159.0,0.0001843,30]
[348126127,1736342008888,200.0,0.0002,120]
[348126167,1736343032279,-538.19,8.219e-05,2]
[348126169,1736343032288,-1000.0,9.046e-05,2]
[348126171,1736343032298,-250.0,9.071e-05,2]
[348126172,1736343032307,-441.38,9.083e-05,2]